Cogmind - Beta 15 @@@ ROGUE MODE // 2025.05.10 @ 14:22:02 Player: CanadianCogs Result: Destroyed by D-53 Grenadier with Mini Grenade Launcher Performance ------------- Evolutions (0) 0 Regions Visited (4) 800 Robots Destroyed (24) 120 Value Destroyed (534) 534 Prototype IDs (2) 40 Alien Tech Used (0) 0 Bonus (300) 300 TOTAL SCORE: 1794 Bonus ------- Aligned with FarCom 300 Cogmind --------- Core Integrity 0/250 Matter 290/300 Energy 157/160 System Corruption 2% Temperature Cool (0) Movement Walking (130) Location -9/Mines Parts ------- > --- POWER (1) -------- Light Nuclear Core > --- PROPULSION (2) --- Carbon-fiber Leg Makeshift Leg > --- UTILITY (2) ------ Improved Heat Sink (fused) Small Storage Unit > --- WEAPON (2) ------- Small Laser Small Laser > --- INVENTORY (8) ---- Hardened Light Armor Plating Skeleton Box Grenade Launcher Rocket Launcher Explosive Trap Explosive Trap Explosive Trap Peak State ------------ > --- POWER ------------ Light Nuclear Core > --- PROPULSION ------- Aluminum Leg Carbon-fiber Leg > --- UTILITY ---------- Improved Heat Sink Small Storage Unit > --- WEAPON ----------- AWS/Gauss > --- INVENTORY -------- Experimental Sensor Array Grenade Launcher Rocket Launcher Explosive Trap Explosive Trap Explosive Trap Explosive Trap Explosive Trap [Rating: 28] Favorites ----------- Power Light Ion Engine Engine Light Ion Engine Power Core Light Nuclear Core Propulsion Compact Wheel Leg Carbon-fiber Leg Wheel Compact Wheel Utility Small Storage Unit Device Improved Heat Sink Storage Small Storage Unit Weapon Small Laser Energy Gun Small Laser Ballistic Gun Light Assault Rifle Build | -11 -10 -10 -10 -9 ------- Run | Yrd Mat Min Exi Min Slots Evolved . | . . . . . Power . | . . . . . Propulsion . | . . . . . Utility . | . . . . . Weapon . | . . . . . Parts Attached 25 | 7 2 14 1 1 Power 3 | 1 . 2 . . Engine 2 | 1 . 1 . . Core 1 | . . 1 . . Reactor . | . . . . . Propulsion 9 | 2 2 4 . 1 Treads . | . . . . . Leg 3 | . . 2 . 1 Wheel 6 | 2 2 2 . . Hover . | . . . . . Flight . | . . . . . Utility 7 | 2 . 5 . . Device 6 | 1 . 5 . . Storage 1 | 1 . . . . Processor . | . . . . . Hackware . | . . . . . Protection . | . . . . . Artifact . | . . . . . Weapon 6 | 2 . 3 1 . Energy Gun 4 | 1 . 3 . . Energy Cannon . | . . . . . Ballistic Gun 2 | 1 . . 1 . Ballistic Cannon . | . . . . . Launcher . | . . . . . Special Weapon . | . . . . . Impact Weapon . | . . . . . Slashing Weapon . | . . . . . Piercing Weapon . | . . . . . Special Melee Weapon . | . . . . . Unidentified Prototypes 2 | . . 1 1 . Parts Lost 5 | . 2 3 . . Power . | . . . . . Propulsion 3 | . 2 1 . . Utility 1 | . . 1 . . Weapon 1 | . . 1 . . Highest Loss Streak 2 | . 2 2 . . To Critical Strikes . | . . . . . Average Backups 2 | . 2 2 3 3 Power . | . . . . . Propulsion . | . . . . . Utility 1 | . . 1 . . Weapon 1 | . 1 1 2 2 Tool/Special . | . . . . . Unused Backups 4 | . . . . 4 Power . | . . . . . Propulsion . | . . . . . Utility 1 | . . . . 1 Weapon 2 | . . . . 2 Tool/Special 1 | . . . . 1 Average Slot Usage (%) 98 | . 97 97 99 100 Engine 7 | . 14 7 . . Core 6 | . . 6 14 14 Leg 13 | . . 12 28 28 Wheel 13 | . 25 14 . . Device 13 | . 14 13 14 14 Storage 14 | . 14 14 14 14 Energy Gun 23 | . 14 27 27 28 Ballistic Gun 4 | . 14 . . . Peak Build Rating 28 | 7 7 15 28 17 Average Rating 10 | 5 6 10 13 14 On Entrance 8 | . 7 7 14 14 Naked Turns . | . . . . . Heaviest Build 13 | 11 11 13 13 13 Greatest Support 35 | 32 32 32 25 35 Greatest Overweight (x) 3 | . 3 1 . . Average Overweight (x) . | . . . . . Largest Inventory Capacity 8 | 8 8 8 8 8 Average Capacity 7 | 7 8 8 8 8 Most Carried 8 | 1 4 8 8 8 Average Carried 5 | . 2 6 7 7 Final Capacity 8 | 8 8 8 8 8 Final Carried 8 | . 4 8 8 7 Class Distribution -------------------- 54% | Scavenger-Mutant 45% | Mutant Dominant Class ---------------- Mutant | -10/Materials Scavenger-Mutant | -10/Mines Scavenger-Mutant | -10/Exiles Scavenger-Mutant | -9/Mines Resources | -11 -10 -10 -10 -9 ----------- Run | Yrd Mat Min Exi Min Matter Collected 503 | 262 60 141 . 40 Remotely . | . . . . . Salvage Created 920 | 23 383 417 . 97 Parts 53 | 3 23 22 . 5 Haulers Intercepted . | . . . . . Recyclers Shooed 3 | . . 3 . . Parts Field Recycled . | . . . . . Retrieved Matter . | . . . . . Parts Self-Destructed . | . . . . . Prevented . | . . . . . Kills | -11 -10 -10 -10 -9 ------- Run | Yrd Mat Min Exi Min Combat Hostiles Destroyed 15 | . 6 7 . 2 Guns 15 | . 6 7 . 2 Classes Destroyed 8 | 1 4 2 . 1 Worker 2 | . 2 . . . Builder 1 | . . 1 . . Tunneler 2 | 1 . 1 . . Recycler 3 | . 1 2 . . Operator 1 | . 1 . . . Swarmer 3 | . . 3 . . Grunt 11 | . 6 4 . 1 Brawler 1 | . . . . 1 Best Kill Streak 4 | 1 4 4 . 2 Combat Bots Only 2 | . 2 2 . 2 Max Kills in Single Turn 2 | 1 2 1 . 1 Gunslinging . | . . . . . Exploded . | . . . . . Melee . | . . . . . Uniques/NPCs Destroyed . | . . . . . Combat | -11 -10 -10 -10 -9 -------- Run | Yrd Mat Min Exi Min Hostile Shots Fired 73 | . 26 38 . 9 Missed 14 | . 6 7 . 1 Hits 59 | . 20 31 . 8 Projectile 59 | . 20 31 . 8 AOE 5 | . . . . 5 Damage Taken 828 | . 244 373 . 211 Core 261 | . 73 87 . 101 Absorbed by Shields . | . . . . . Core Remaining (%) 100 | 100 . . . . Volleys Fired 75 | 2 33 34 . 6 Largest 2 | 2 2 2 . 2 Hottest 80 | 60 60 80 . 80 Shots Fired 146 | 4 65 65 . 12 Gun 146 | 4 65 65 . 12 Cannon . | . . . . . Launcher . | . . . . . Special . | . . . . . Kinetic 43 | 2 34 7 . . Thermal 103 | 2 31 58 . 12 Explosive . | . . . . . Electromagnetic . | . . . . . Robot Hit Streak 5 | 1 5 5 . 3 Robot Miss Streak 3 | 2 3 3 . 2 Penetration Max . | . . . . . Secondary Targets 3 | . 1 1 . 1 Max Gunslinging Chain 1 | . 1 1 . 1 Shots Hit Robots 83 | 1 36 40 . 6 Core Hits 48 | 1 20 21 . 6 Critical Kills . | . . . . . Critical Parts Destroyed . | . . . . . Critical Strikes . | . . . . . Melee Attacks . | . . . . . Impact . | . . . . . Slashing . | . . . . . Piercing . | . . . . . Sneak Attacks . | . . . . . Combat Hostiles . | . . . . . Follow-up Attacks . | . . . . . Damage Inflicted 908 | 10 373 442 . 83 Guns 908 | 10 373 442 . 83 Cannons . | . . . . . Explosions . | . . . . . Melee . | . . . . . Ramming . | . . . . . Kinetic 207 | . 180 27 . . Thermal 701 | 10 193 415 . 83 Explosive . | . . . . . Electromagnetic . | . . . . . Impact . | . . . . . Slashing . | . . . . . Piercing . | . . . . . Highest Corruption 2 | . 2 2 2 2 Average Corruption 2 | . 2 2 2 2 Corruption Purged . | . . . . . Corruption Blocked . | . . . . . Effects 22 | . 3 16 2 1 Message Errors 9 | . 1 8 . . Matter Fused 2 | . 1 . 1 . Heat Flow Errors 1 | . . 1 . . Energy Discharges 4 | . . 3 . 1 Parts Fused 1 | . . . 1 . Data Loss (minor) 1 | . . 1 . . Data Loss (major) 1 | . . 1 . . Misfires 2 | . 1 1 . . Weapon Failures 1 | . . 1 . . Overload Shots . | . . . . . Overflow Damage . | . . . . . Projectiles . | . . . . . Explosions . | . . . . . Melee . | . . . . . Knockbacks . | . . . . . Impact . | . . . . . Kinetic . | . . . . . Secondary . | . . . . . Self-Inflicted Damage . | . . . . . Shots . | . . . . . Rammed . | . . . . . Targets Rammed . | . . . . . Kicked . | . . . . . Crushed . | . . . . . Highest Temperature 201 | 20 146 201 . . Average Temperature 51 | 15 52 55 . . Received Heat Transfer 312 | . 132 162 . 18 Siege Activations . | . . . . . Martial Activations . | . . . . . Shielding Activations . | . . . . . Robots Disrupted . | . . . . . Combat Hostiles . | . . . . . Robots Corrupted . | . . . . . Combat Hostiles . | . . . . . Parts Fried . | . . . . . Impact Corruptions . | . . . . . Robots Melted . | . . . . . Combat Hostiles . | . . . . . Parts Melted 2 | . . 2 . . Heat Transferred 1525 | 25 425 900 . 175 Parts Sabotaged . | . . . . . Parts Stolen . | . . . . . Parts Stripped . | . . . . . Power Chain Reactions . | . . . . . Alert | -11 -10 -10 -10 -9 ------- Run | Yrd Mat Min Exi Min Maximum Alert Level . | . . . . . Low Security (%) 100 | 100 100 100 . 100 Level 1 . | . . . . . Level 2 . | . . . . . Level 3 . | . . . . . Level 4 . | . . . . . Level 5 . | . . . . . High Security . | . . . . . Max Security . | . . . . . Peak Influence 61 | 5 52 61 . 40 Initial 16 | . . 16 . . Average 14 | 1 17 14 . 9 Influence Increases 472 | 5 212 205 . 50 Destroy 0b10 Robot/C 300 | . 120 140 . 40 Destroy 0b10 Robot/NC 45 | 5 20 20 . . Destroy Leader 60 | . 20 30 . 10 Successful Hack 7 | . 7 . . . Select Force Hacks 30 | . 30 . . . Lose Combat Pursuer 30 | . 15 15 . . Influence Decreases 452 | 5 168 249 . 30 Entered New Map 28 | . . 28 . . Time Decay 376 | 5 150 191 . 30 Lost Part 48 | . 18 30 . . Squads Dispatched 2 | . 2 . . . Investigation 2 | . 2 . . . Extermination . | . . . . . Reinforcement . | . . . . . Assault . | . . . . . Garrison . | . . . . . Intercept . | . . . . . Searches Triggered . | . . . . . Construction Impeded . | . . . . . Haulers Reinforced . | . . . . . Active Scanning Responses . | . . . . . Cargo Convoy Interrupts . | . . . . . Stealth | -11 -10 -10 -10 -9 --------- Run | Yrd Mat Min Exi Min Distress Signals . | . . . . . Communications Jammed . | . . . . . Distress Signals . | . . . . . Times Spotted 23 | . 11 8 . 4 Peak Tracking Total 3 | . 3 3 . 2 Tactical Retreats 2 | . 1 1 . . Traps | -11 -10 -10 -10 -9 ------- Run | Yrd Mat Min Exi Min Traps Triggered 1 | . 1 . . . Indirectly . | . . . . . Trap Hack Attempts . | . . . . . Triggered . | . . . . . Disarmed . | . . . . . Reprogrammed . | . . . . . Reused . | . . . . . Traps Extracted . | . . . . . Installed 2 | . . . . 2 Triggered . | . . . . . Most Traps Carried 5 | . . 5 5 5 Machines | -11 -10 -10 -10 -9 ---------- Run | Yrd Mat Min Exi Min Machines Disabled . | . . . . . Max in Single Turn . | . . . . . Machines Repaired . | . . . . . Machines Dismantled . | . . . . . Machines Sabotaged . | . . . . . Overloaded Fab Kills . | . . . . . Hacking | -11 -10 -10 -10 -9 --------- Run | Yrd Mat Min Exi Min Machines Accessed 4 | . 4 . . . Terminals 3 | . 3 . . . Fabricators . | . . . . . Repair Stations . | . . . . . Recycling Units 1 | . 1 . . . Scanalyzers . | . . . . . Garrison Access . | . . . . . Total Hacks 15 | . 15 . . . Successful 12 | . 12 . . . Failed 2 | . 2 . . . Catastrophic . | . . . . . Database Lockouts 1 | . 1 . . . Manual 15 | . 14 . 1 . Terminals 10 | . 10 . . . Fabricators . | . . . . . Repair Stations . | . . . . . Recycling Units 5 | . 5 . . . Scanalyzers . | . . . . . Garrison Access . | . . . . . Terminal Hacks 5 | . 5 . . . Robot Analysis 3 | . 3 . . . Registered Prototypes 1 | . 1 . . . Zone Layout 1 | . 1 . . . Fabricator Hacks . | . . . . . Repair Station Hacks . | . . . . . Recycling Unit Hacks . | . . . . . Scanalyzer . | . . . . . Garrison Access Hacks . | . . . . . Unauthorized Hacks 4 | . 4 . . . Terminals 3 | . 3 . . . Botnet 2 | . 2 . . . Search 1 | . 1 . . . Fabricators . | . . . . . Repair Stations . | . . . . . Recycling Units 1 | . 1 . . . Tunnel 1 | . 1 . . . Scanalyzers . | . . . . . Garrison Access . | . . . . . Data Cores Recovered 1 | . 1 . . . Used . | . . . . . Hacking Detections 3 | . 3 . . . Full Trace Events 1 | . 1 . . . Feedback Events . | . . . . . Feedback Blocked . | . . . . . Robot Schematics Acquired . | . . . . . Robots Built . | . . . . . Authchips . | . . . . . Time . | . . . . . Total Robot Build Rating . | . . . . . Part Schematics Acquired . | . . . . . Parts Built . | . . . . . Authchips . | . . . . . Time . | . . . . . Total Part Build Rating . | . . . . . Parts Repaired . | . . . . . Time . | . . . . . Parts Recycled . | . . . . . Recycled Matter . | . . . . . Retrieved Matter . | . . . . . Retrieved Components . | . . . . . Parts Scanalyzed . | . . . . . Part Schematics Acquired . | . . . . . Parts Damaged . | . . . . . Bothacking | -11 -10 -10 -10 -9 ------------ Run | Yrd Mat Min Exi Min Used RIF Installer . | . . . . . Robots Hacked . | . . . . . Non-combat . | . . . . . Combat . | . . . . . Robot Hacks Applied . | . . . . . Relay Couplers Released . | . . . . . Fabnet Peak Effective % . | . . . . . Robots Rewired . | . . . . . Allies Hacked . | . . . . . Hacks Repelled . | . . . . . Allies | -11 -10 -10 -10 -9 -------- Run | Yrd Mat Min Exi Min Total Allies . | . . . . . Largest Group . | . . . . . Highest-Rated Group . | . . . . . Highest-Rated Ally . | . . . . . Total Orders . | . . . . . Ally Attacks . | . . . . . Total Damage . | . . . . . Kills . | . . . . . Allies Corrupted . | . . . . . Allies Melted . | . . . . . Intel | -11 -10 -10 -10 -9 ------- Run | Yrd Mat Min Exi Min Active Infowar (turns) 567 | 26 538 3 . . Sensors 1 | . . 1 . . Seismic 566 | 26 538 2 . . Robot Analysis Total 3 | . 3 . . . Derelict Logs Recovered 1 | . . 1 . . Drone Launches . | . . . . . Drone Recoveries . | . . . . . Exploration | -11 -10 -10 -10 -9 ------------- Run | Yrd Mat Min Exi Min Turns Passed 1967 | 55 538 856 344 174 Spaces Moved 1312 | 41 236 643 281 111 Core 7 | 5 2 . . . Treads . | . . . . . Legs 664 | . . 272 281 111 Wheels 641 | 36 234 371 . . Hover . | . . . . . Flight . | . . . . . Fastest Speed 50 | 50 80 80 120 120 Average Speed 108 | 93 98 104 120 122 Slowest Speed 200 | 100 200 120 120 130 Overloaded Moves . | . . . . . Propulsion Burnouts . | . . . . . Robots Hopped . | . . . . . Potential Cave-ins . | . . . . . Cave-ins Triggered . | . . . . . Exploration Rate (%) 49 | 4 43 98 63 39 Regions Visited 4 Branch Regions 3 Pre-discovered Areas 1 | . 1 . . . Known Exits Taken . | . . . . . Unknown Exits Taken 4 | 1 1 1 1 . Scrap Searched 2 | . . 1 . 1 Spaces Dug . | . . . . . Terrain Destroyed . | . . . . . Melee . | . . . . . Projectile . | . . . . . AOE . | . . . . . Terrain Rammed . | . . . . . Walls Destroyed . | . . . . . Machines Disabled . | . . . . . Actions | -11 -10 -10 -10 -9 --------- Run | Yrd Mat Min Exi Min Total 1723 | 50 481 765 288 139 Wait 277 | . 207 55 . 15 Move 1308 | 40 235 642 280 111 Hop . | . . . . . Pick Up 15 | 1 4 8 1 1 Fast Attach 18 | 6 2 6 3 1 Attach 5 | 1 . 4 . . Detach 1 | . . 1 . . Swap 4 | . . 4 . . Drop 18 | . . 11 4 3 Fire 75 | 2 33 34 . 6 Melee . | . . . . . Ram . | . . . . . Kick . | . . . . . Crush . | . . . . . Escape Stasis . | . . . . . Rewire . | . . . . . Trap 2 | . . . . 2 Miscellaneous . | . . . . . Route ------- -11/Scrapyard -10/Materials (discovered 3 exits: [*Mat] / [*Min x2]) -10/Mines (discovered 4 exits: [*Mat x2] / *Exi / [*Sub]) -10/Exiles (discovered 2 exits: [*Min x2]) -9/Mines History --------- Turn | Location | Event 19 | -11/Scrapyard | Discovered new exit (range 16) 56 | -11/Scrapyard | Entered Materials 72 | -10/Materials | Discovered new exit (range 7) 304 | -10/Materials | Build established: Mutant 402 | -10/Materials | Central database locked down 431 | -10/Materials | Discovered new exit (range 13) 578 | -10/Materials | Discovered new exit (range 15) 594 | -10/Materials | Entered Mines 705 | -10/Mines | Discovered new exit (range 15) 734 | -10/Mines | Discovered new exit (range 9) 762 | -10/Mines | Found a damaged Exp. Sensor Array with a note attached 764 | -10/Mines | Found Prototype Device 765 | -10/Mines | Identified Exp. Sensor Array 816 | -10/Mines | Found a hidden stash of uninstalled traps 984 | -10/Mines | Discovered new exit (range 11) 1039 | -10/Mines | Core integrity fell below 50% 1237 | -10/Mines | Received a Rocket Launcher from a helpful Derelict 1276 | -10/Mines | Learned Materials stockpile data 1357 | -10/Mines | Build established: Scavenger-Mutant 1445 | -10/Mines | Deemed a non-threat by the Exiles lab entrance 1445 | -10/Mines | Discovered new exit (range 5) 1450 | -10/Mines | Entered Exiles 1471 | -10/Exiles | Discovered new exit (range 15) 1496 | -10/Exiles | Met 8R-AWN 1515 | -10/Exiles | Met EX-HEX 1554 | -10/Exiles | Met EX-BIN 1568 | -10/Exiles | Aligned with FarCom system 1569 | -10/Exiles | Given EX-Vault access code 1598 | -10/Exiles | Opened EX-Vault 1607 | -10/Exiles | Found Prototype Ballistic Gun 1607 | -10/Exiles | Identified AWS/Gauss 1623 | -10/Exiles | Found Prototype Device 1650 | -10/Exiles | Warned to stay clear of 0b10 Research branches 1655 | -10/Exiles | Exiles lab attacked by MAIN.C 1776 | -10/Exiles | Discovered new exit (range 14) 1794 | -10/Exiles | Left Exiles lab with Skeleton Box 1794 | -10/Exiles | Entered Mines 1806 | -9/Mines | Met a Derelict bent on vengeance 1956 | -9/Mines | Assembled infested the area 1967 | -9/Mines | Core integrity fell below 20% 1968 | -9/Mines | Destroyed by D-53 Grenadier with Mini Grenade Launcher Last Messages --------------- 01904_ K-01 Serf collects debris. 01912_ System corrupted: Energy discharge (-64). 01913_ B-36 Bruiser destroyed. 01913_ Switching to secondary target: G-34 Mercenary. 01914_ K-01 Serf collects debris. 01916_ G-34 Mercenary destroyed. 01917_ K-01 Serf collects debris. 01923_ Dropped Aluminum Leg. 01923_ Acquired Mak. Leg. 01926_ K-01 Serf collects debris. 01929_ R-06 Scavenger collects Aluminum Leg. 01932_ K-01 Serf collects debris. 01933_ R-06 Scavenger collects Aluminum Leg. 01935_ K-01 Serf collects debris. 01940_ R-06 Scavenger collects Sml. Laser. 01956_ ALERT: Infestation in the mines, dispatching Demolisher response squad. 01958_ C-30 ARC bursts open, deploying its payload. 01958_ D-53 Grenadier unfolds itself. 01967_ The unstable cave ceiling collapses. Map ----- +----------------------------------------------------+ | ??????????????????????????????????? | | ??????????????????????????????????? | | ??????????????????????????????????? | | ??????????????????????????????????? | | ??????????????????????????????????? | | ??????????????????????????????????? | | ??????????????????????????????????? | | ??????????????????????????????????? | | ??????????????????????????????????? | | ??????????????????????????????????? | | ??????????????????????????????????? | | ??????????????????????????????????? | | ??????????????????????????????????? | | ??????????????????????????????????? | | ??????????????????????????????????? | | ??????????????????????????????????? | | ??????????????????????????????????? | | ??????????????????????????????????? | | ?????????####?????????????????????? | | ????????## ##????????????????????? | | ????????# #????????????????????? | | ??????### ##???????????????????? | | ?????## ####????????????????? | | ?????# # ?????????????????? | | ?????# ##??????????????????? | | ?????# @ #??????????????????? | | ?????## #??????????????????? | | ???#### d #??????????????????? | | ??## d ##??????????????????? | | ??# ## #???????????????????? | | ??# ##???# ?????????????? | | ??## #??? ????????????? | | ???## #??? ????????????? | | ????# ###t ##?## #???????????? | | ????# %#??# ##??# ???????????? | | ????# ???# #???# ????????????? | | ????# ????# ##### #???????????? | | ????# ?????# #????????????? | | ????#??????# ##### #?????????????? | | ?????# ???## ##??# #?????????????? | | ?????# ## ##?# #####?????????? | | ??????# ### ## ##????????? | | ??????## #????##### | | ???????### #???## | | ?????????## ##??##= | | ??????????# #####%/ | | ??????????## "%"^ [*% ### | | ???????????## " %*= ##?? | | ????????????# ### ### ##?? | | ???????????# ##?## #?# ##? | +----------------------------------------------------+ Best States ------------- Heat Dissipation 39 Energy Generation 14 Energy Capacity 160 Matter Stores 300 Matter Capacity 300 Sight Range 16 Terrain Scan Density 10 Evasion (%) 55 Item Schematics ----------------- None Robot Schematics ------------------ None Fabricated ------------ Nothing Repaired ---------- Nothing Alien Tech Used ----------------- None Achievements -------------- None Challenges ------------ None Game ------ Seed DisruptionRelayImmobilizer Manual? 0 Play Time 00:20:39 Cumulative 64.8 hours Start 2025.05.10 @ 13:57:13 End 2025.05.10 @ 14:22:02 Sessions 1 Manual Loads 0 Difficulty Rogue Special Mode None Game No. 107 Rogue 107 Adventurer 0 Explorer 0 Win Type - Total 0 Types 0/0/0/0/0/0/0/0/0/0 Lore% 19 Gallery% 37 Achievement% 33 Wizard Run 0 Options --------- Layout 0 ASCII 0 Keyboard 0 Movement Mouse Keybinds 0 Fullscreen 2 Font 18/SmallcapsGlow Map View 38x25 Zoom Use 96% Tactical HUD 1 Map Filters NONE Filters NONE Steam 1 RUN: d29b80d5-f059-415e-bec5-a39991bd5577